[Event "Kragero Resort A 2020"]
[Site "Kragero"]
[Date "2020.02.23"]
[Round "9.10"]
[White "Gretarsson, Helgi Ass"]
[Black "Ranaldi, Lucas"]
[Result "1-0"]
[ECO "E12"]
[WhiteElo "2403"]
[BlackElo "2302"]
[Annotator "NA"]
[PlyCount "95"]
[EventDate "2020.02.19"]
[EventType "swiss"]
[EventCountry "NOR"]
[SourceTitle "playchess.com"]
[Source "ChessBase"]
[SourceQuality "1"]
[TimeControl "5400+30"]

1. d4 {[%emt 0:00:00]} Nf6 {[%emt 0:00:00]} 2. c4 {[%emt 0:00:00]} e6 {[%emt 0:00:00]} 3. Nf3 {[%emt 0:00:00]} b6 {[%emt 0:00:00]} 4. Bf4 {[%emt 0:01:12]} Bb7 {[%emt 0:00:04]} 5. e3 {[%emt 0:00:04]} Bb4+ {[%emt 0:00:11]} 6. Nfd2 {[%emt 0:00:08]} c5 {[%emt 0:00:51] E12: Queen's Indian: Unusual White 4th moves, 4 a3, 4 Nc3 Bb7 5 a3 and 4 Nc3 Bb7 .} 7. a3 {[%emt 0:05:40]} Bxd2+ $1 {[%emt 0:00:05]} 8. Qxd2 {[%emt 0:00:01]} ({Much weaker is} 8. Kxd2 cxd4 9. exd4 Nc6 $17) 8... cxd4 {[%emt 0:00:16]} 9. Qxd4 {[%emt 0:00:13]} Nc6 {[%emt 0:00:15]} 10. Qd1 {[%emt 0:00:01] [#]} O-O $146 {[%emt 0:01:07]} ({Predecessor:} 10... d5 11. Nc3 dxc4 12. Bxc4 e5 13. Bg5 Ne7 14. O-O O-O 15. Qe2 a6 16. Rfd1 Qc7 {1-0 (31) Szydlowski,E-Rudak,W Wroclaw 1980}) 11. Nc3 {[%emt 0:11:09]} a6 {[%emt 0:27:51]} (11... d5 $11) 12. Bd6 {[%emt 0:10:01]} Re8 {[%emt 0:00:25]} 13. Be2 {[%emt 0:00:13]} e5 {[%emt 0:01:44]} 14. O-O {[%emt 0:01:45]} Re6 {[%emt 0:02:19]} 15. a4 {[%emt 0:02:21]} Rc8 {[%emt 0:01:28]} 16. b3 {[%emt 0:04:08]} Na5 {[%emt 0:17:36]} 17. Rb1 {[%emt 0:08:07]} Ne4 {[%emt 0:10:37]} 18. Nxe4 {[%emt 0:06:46]} Bxe4 {[%emt 0:00:02]} 19. Rb2 {[%emt 0:00:01]} Qg5 {[%emt 0:01:28]} (19... Qh4 $5 {[%cal Re4g2]} 20. g3 (20. f3 Qh6 $11) 20... Qh3 $11) 20. g3 {[%emt 0:00:09]} Qh6 {[%emt 0:16:11]} 21. Ba3 {[%emt 0:14:39]} d6 {[%emt 0:04:55]} 22. Bg4 {[%emt 0:06:00]} f5 {[%emt 0:00:14]} 23. Bf3 {[%emt 0:00:01]} Qg6 {[%emt 0:06:13]} 24. Bxe4 {[%emt 0:08:32]} fxe4 {[%emt 0:00:02]} 25. Qd5 {[%emt 0:00:02]} Nc6 {[%emt 0:04:14]} 26. Bxd6 {[%emt 0:01:30]} Rd8 {[%emt 0:00:16]} 27. Qxc6 {[%emt 0:02:48]} Rexd6 {[%emt 0:00:08]} 28. Qc7 {[%emt 0:00:23]} Qg4 {[%emt 0:03:31]} 29. c5 {[%emt 0:05:38]} bxc5 {[%emt 0:00:11]} 30. Qxc5 {[%emt 0:00:07]} Rd5 $2 {[%emt 0:00:53]} (30... Rd1 $16 {might work better.}) 31. Qc4 $18 {[%emt 0:00:24]} Kh8 {[%emt 0:00:14]} 32. Qxa6 {[%emt 0:03:46]} h5 {[%emt 0:00:01]} 33. Qe2 {[%emt 0:01:08]} Qh3 {[%emt 0:01:03]} 34. b4 {[%emt 0:00:47]} R5d6 {[%emt 0:01:14]} 35. b5 {[%emt 0:00:21]} h4 {[%emt 0:00:10]} 36. b6 {[%emt 0:03:38]} Qf5 {[%emt 0:01:15]} 37. b7 {[%emt 0:01:53]} Rb8 {[%emt 0:00:01]} 38. a5 {[%emt 0:01:26]} h3 {[%emt 0:00:01]} 39. Rc1 {[%emt 0:01:25]} Qe6 {[%emt 0:01:13]} 40. Qc2 {[%emt 0:00:35]} Qd5 {[%emt 0:00:53]} 41. a6 {[%emt 0:00:56]} Qa5 {[%emt 0:00:07]} 42. Qc8+ {[%emt 0:00:24]} Rd8 {[%emt 0:00:13]} 43. Qxh3+ {[%emt 0:00:07]} Kg8 {[%emt 0:00:01]} 44. Qe6+ {[%emt 0:00:27]} Kh8 {[%emt 0:00:02]} 45. Kg2 {[%emt 0:00:32]} Qa3 {[%emt 0:00:37]} 46. Rbc2 {[%emt 0:00:09]} Qf8 {[%emt 0:00:25]} 47. Qg4 {[%emt 0:00:28]} Qa3 {[%emt 0:00:55]} 48. Rc7 {[%emt 0:00:13]} 1-0

[Event "Kragero Resort A 2020"]
[Site "Kragero"]
[Date "2020.02.23"]
[Round "9.11"]
[White "Heimisson, Hilmir Freyr"]
[Black "Tryggestad, Andreas Garberg"]
[Result "1-0"]
[ECO "A45"]
[WhiteElo "2250"]
[BlackElo "2380"]
[Annotator "NA"]
[PlyCount "143"]
[EventDate "2020.02.19"]
[EventType "swiss"]
[EventCountry "NOR"]
[SourceTitle "playchess.com"]
[Source "ChessBase"]
[SourceQuality "1"]
[TimeControl "5400+30"]

1. d4 {[%emt 0:00:00]} Nf6 {[%emt 0:00:00]} 2. Bf4 {[%emt 0:00:00]} g6 {[%emt 0:01:13]} 3. Nc3 {[%emt 0:00:00]} d5 {[%emt 0:00:07]} 4. e3 {[%emt 0:00:00]} Bg7 {[%emt 0:00:07]} 5. h4 {[%emt 0:00:03]} h5 {[%emt 0:00:28]} 6. Nf3 {[%emt 0:00:26] A45: Trompowsky Attack.} Bf5 {[%emt 0:01:05]} 7. Bd3 {[%emt 0:01:10]} Bxd3 {[%emt 0:00:20] [#]} 8. cxd3 $146 {[%emt 0:00:08]} ({Predecessor:} 8. Qxd3 c6 9. Ne5 Nbd7 10. f3 Nxe5 11. Bxe5 Qb6 12. O-O-O O-O-O 13. Kb1 Ne8 14. Bxg7 Nxg7 {1-0 (43) Salomon,J (2498)-Gullaksen,E (2366) Norway 2017}) 8... O-O {[%emt 0:00:58]} (8... c6 $11) 9. Qb3 {[%emt 0:01:07]} b6 {[%emt 0:02:15]} 10. O-O {[%emt 0:03:46]} c6 {[%emt 0:00:48]} 11. a4 {[%emt 0:07:42]} (11. Rfc1 $16) 11... Nbd7 {[%emt 0:01:39]} 12. a5 {[%emt 0:18:52]} Ne8 {[%emt 0:04:17]} 13. Rfc1 {[%emt 0:01:02]} Nd6 {[%emt 0:10:53]} 14. Qa4 {[%emt 0:12:19]} Rc8 {[%emt 0:00:34]} 15. Rc2 {[%emt 0:07:43]} Nf5 {[%emt 0:08:57]} 16. Rac1 {[%emt 0:09:41]} e6 {[%emt 0:07:48]} 17. Ne2 {[%emt 0:04:07]} Nb8 {[%emt 0:14:42]} 18. axb6 {[%emt 0:04:47]} axb6 {[%emt 0:01:01]} 19. g3 {[%emt 0:00:32]} Ne7 {[%emt 0:03:12]} 20. b4 {[%emt 0:02:27]} Qd7 {[%emt 0:03:35]} 21. Qa3 {[%emt 0:01:18]} Rfd8 {[%emt 0:00:53]} 22. b5 $16 {[%emt 0:01:54]} Bf8 {[%emt 0:02:08]} 23. Bxb8 {[%emt 0:01:16]} Rxb8 {[%emt 0:00:19]} 24. Ne5 {[%emt 0:00:04]} Qe8 {[%emt 0:02:14]} 25. Qb3 {[%emt 0:08:04]} cxb5 {[%emt 0:00:06]} 26. Nc3 {[%emt 0:01:04]} f6 {[%emt 0:08:17]} 27. Nf3 {[%emt 0:00:15]} b4 {[%emt 0:01:58]} 28. Na2 {[%emt 0:00:25]} Qb5 {[%emt 0:03:54]} 29. Nxb4 {[%emt 0:05:01]} Nf5 {[%emt 0:01:36]} 30. Rb1 {[%emt 0:01:42]} Rdc8 {[%emt 0:00:43]} 31. Nc6 {[%emt 0:01:52]} Qxb3 {[%emt 0:02:04]} 32. Rxb3 {[%emt 0:00:01]} b5 {[%emt 0:02:41]} 33. Nxb8 {[%emt 0:00:38]} Rxc2 {[%emt 0:00:02]} 34. Rxb5 {[%emt 0:00:11]} Nh6 {[%emt 0:05:46]} 35. Nh2 {[%emt 0:00:44]} Rc3 {[%emt 0:02:25]} 36. Nd7 {[%emt 0:00:51]} Be7 {[%emt 0:00:00]} 37. Nc5 {[%emt 0:03:41]} Kf7 {[%emt 0:05:28]} 38. Rb7 {[%emt 0:00:24]} e5 {[%emt 0:00:01]} 39. Rd7 {[%emt 0:00:36]} exd4 {[%emt 0:01:00]} 40. exd4 {[%emt 0:00:01]} Rc1+ {[%emt 0:00:44]} 41. Kg2 {[%emt 0:00:14]} Nf5 {[%emt 0:00:01]} 42. Rxd5 {[%emt 0:00:26]} Rc2 {[%emt 0:01:12]} 43. Nf1 {[%emt 0:01:23]} Bd6 {[%emt 0:00:32]} 44. Ne4 {[%emt 0:00:49]} Ke6 {[%emt 0:00:42]} 45. Ra5 {[%emt 0:01:29]} Nxd4 {[%emt 0:00:10]} 46. Ne3 {[%emt 0:00:55]} Rc6 {[%emt 0:00:19]} 47. Ra8 {[%emt 0:00:58]} Be7 {[%emt 0:00:23]} 48. Ra4 {[%emt 0:00:47]} Nc2 {[%emt 0:00:47]} 49. d4 {[%emt 0:00:39]} Nxe3+ 50. fxe3 {[%emt 0:00:01]} Rb6 {[%emt 0:04:01]} 51. Kf3 {[%emt 0:00:19]} Bf8 {[%emt 0:00:02]} 52. Ra8 {[%emt 0:00:33]} Be7 {[%emt 0:00:04]} 53. Ra7 {[%emt 0:00:48]} Bf8 {[%emt 0:00:24]} 54. Nf2 {[%emt 0:00:27]} Rb3 {[%emt 0:00:59]} 55. Ra6+ {[%emt 0:00:18]} Kf7 {[%emt 0:00:01]} 56. Ra7+ {[%emt 0:00:57]} Ke6 {[%emt 0:00:12]} 57. Rh7 {[%emt 0:00:14]} Ra3 {[%emt 0:00:38]} 58. Nh3 {[%emt 0:00:39]} Bd6 {[%emt 0:01:35]} 59. Ng1 {[%emt 0:00:50]} Bb4 {[%emt 0:00:27]} 60. Ne2 {[%emt 0:00:26]} Bd2 {[%emt 0:00:01]} 61. Nf4+ {[%emt 0:00:11]} Kd6 {[%emt 0:00:22]} 62. Ng2 {[%emt 0:00:07]} Ke6 {[%emt 0:00:34]} 63. Rg7 {[%emt 0:00:44]} Kf5 {[%emt 0:00:13]} 64. Re7 {[%emt 0:00:16]} Bc1 {[%emt 0:00:10]} 65. Nf4 {[%emt 0:00:36]} Rb3 {[%emt 0:00:48]} 66. Re4 {[%emt 0:01:06]} Ba3 {[%emt 0:00:53]} 67. Ne6 {[%emt 0:00:36]} g5 {[%emt 0:00:26]} 68. hxg5 {[%emt 0:00:05]} fxg5 {[%emt 0:00:08]} 69. Re5+ {[%emt 0:00:04]} Kf6 {[%emt 0:00:09]} 70. Nxg5 {[%emt 0:00:06]} Kg6 {[%emt 0:00:10]} 71. Nh3 {[%emt 0:00:11]} Bd6 {[%emt 0:00:18]} 72. Re6+ {[%emt 0:00:02]} 1-0

[Event "Kragero Resort A 2020"]
[Site "Kragero"]
[Date "2020.02.23"]
[Round "9.12"]
[White "Shehzad, Shazil"]
[Black "Vijayalakshmi, Subbaraman"]
[Result "0-1"]
[ECO "B06"]
[WhiteElo "2144"]
[BlackElo "2331"]
[Annotator "ChessBase"]
[PlyCount "76"]
[EventDate "2020.02.19"]
[EventType "swiss"]
[EventCountry "NOR"]
[SourceTitle "playchess.com"]
[Source "ChessBase"]
[SourceQuality "1"]
[TimeControl "5400+30"]

1. e4 {[%emt 0:01:50]} g6 {[%emt 0:01:54]} 2. d4 {[%emt 0:00:00]} Bg7 {[%emt 0:00:10]} 3. Nc3 {[%emt 0:00:00]} d6 {[%emt 0:00:07]} 4. Be3 {[%emt 0:00:41]} a6 {[%emt 0:00:15]} 5. f4 {[%emt 0:02:16]} b5 {[%emt 0:02:13]} 6. Be2 {[%emt 0:01:04]} Nd7 {[%emt 0:05:04]} 7. e5 {[%emt 0:00:00]} Bb7 {[%emt 0:03:16]} 8. Bf3 {[%emt 0:00:00]} Qc8 {[%emt 0:00:15]} 9. Qe2 {[%emt 0:00:00]} Nh6 {[%emt 0:00:38]} 10. Bf2 {[%emt 0:00:00]} O-O {[%emt 0:10:55]} 11. a4 {[%emt 0:02:36]} bxa4 {[%emt 0:06:41]} 12. Nxa4 {[%emt 0:02:18]} Rb8 {[%emt 0:08:06]} 13. h4 {[%emt 0:10:34]} c5 {[%emt 0:09:43]} 14. e6 {[%emt 0:00:00]} fxe6 {[%emt 0:01:05]} 15. Qxe6+ {[%emt 0:06:25]} Kh8 {[%emt 0:00:33]} 16. dxc5 {[%emt 0:05:28]} dxc5 {[%emt 0:04:29]} 17. Ne2 {[%emt 0:04:32]} Bxf3 {[%emt 0:03:20]} 18. gxf3 {[%emt 0:01:52]} Rf6 {[%emt 0:00:29]} 19. Qc4 {[%emt 0:04:52]} Rb4 {[%emt 0:01:16]} 20. Qa2 {[%emt 0:04:40]} Qc6 {[%emt 0:04:55]} 21. Nac3 {[%emt 0:04:49]} Qxf3 {[%emt 0:07:10]} 22. O-O-O {[%emt 0:08:47]} Rd6 {[%emt 0:01:51]} 23. Rhf1 {[%emt 0:04:59]} Qb7 {[%emt 0:04:31]} 24. Rxd6 {[%emt 0:02:55]} exd6 {[%emt 0:00:16]} 25. Re1 {[%emt 0:04:05]} Nf8 {[%emt 0:01:36]} 26. h5 {[%emt 0:03:05]} Qf3 {[%emt 0:01:33]} 27. Bg1 {[%emt 0:01:04]} Qxh5 {[%emt 0:00:27]} 28. Qxa6 {[%emt 0:02:04]} Nf5 {[%emt 0:00:15]} 29. Qa8 {[%emt 0:01:40]} Qh4 {[%emt 0:02:52]} 30. Rd1 {[%emt 0:00:48]} Ng3 {[%emt 0:03:36]} 31. Nxg3 {[%emt 0:05:18]} Qxf4+ {[%emt 0:00:23]} 32. Kb1 {[%emt 0:00:36]} Qxg3 {[%emt 0:03:10]} 33. Rf1 {[%emt 0:02:40]} Rf4 {[%emt 0:02:28]} 34. Rd1 {[%emt 0:02:25]} h5 {[%emt 0:00:43]} 35. Ne2 {[%emt 0:03:15]} Qg4 {[%emt 0:00:48]} 36. Nxf4 {[%emt 0:00:16]} Qxd1+ {[%emt 0:00:10]} 37. Ka2 {[%emt 0:00:05]} Qxc2 {[%emt 0:01:20]} 38. Qb8 {[%emt 0:00:58]} Qa4+ {[%emt 0:00:17]} 0-1

[Event "Kragero Resort A 2020"]
[Site "Kragero"]
[Date "2020.02.23"]
[Round "9.14"]
[White "Kaasen, Tor Fredrik"]
[Black "Storme, Isak"]
[Result "1/2-1/2"]
[ECO "C60"]
[WhiteElo "2393"]
[BlackElo "2314"]
[Annotator "ChessBase"]
[PlyCount "96"]
[EventDate "2020.02.19"]
[EventType "swiss"]
[EventCountry "NOR"]
[SourceTitle "playchess.com"]
[Source "ChessBase"]
[SourceQuality "1"]
[TimeControl "5400+30"]

1. e4 {[%emt 0:00:00]} e5 {[%emt 0:00:00]} 2. Nf3 {[%emt 0:00:22]} Nc6 {[%emt 0:00:00]} 3. Bb5 {[%emt 0:00:18]} a6 {[%emt 0:00:00]} 4. Ba4 {[%emt 0:00:13]} g6 {[%emt 0:00:00]} 5. c3 {[%emt 0:02:05]} Bg7 {[%emt 0:00:37]} 6. O-O {[%emt 0:03:36]} b5 {[%emt 0:00:41]} 7. Bc2 {[%emt 0:01:21]} d6 {[%emt 0:00:52]} 8. h3 {[%emt 0:02:25]} Nf6 {[%emt 0:02:12]} 9. Re1 {[%emt 0:01:33]} O-O {[%emt 0:04:30]} 10. d4 {[%emt 0:01:12]} exd4 {[%emt 0:00:29]} 11. cxd4 {[%emt 0:00:34]} Bb7 {[%emt 0:03:57]} 12. Nc3 {[%emt 0:04:21]} Re8 {[%emt 0:01:40]} 13. a3 {[%emt 0:03:24]} Na5 {[%emt 0:02:43]} 14. Bg5 {[%emt 0:03:35]} h6 {[%emt 0:07:04]} 15. Bh4 {[%emt 0:02:36]} g5 {[%emt 0:07:25]} 16. Bg3 {[%emt 0:02:53]} Nc4 {[%emt 0:03:24]} 17. Nd2 {[%emt 0:06:24]} Nxd2 {[%emt 0:12:06]} 18. Qxd2 {[%emt 0:01:21]} Nh5 {[%emt 0:00:14]} 19. Bh2 {[%emt 0:01:55]} c5 {[%emt 0:00:05]} 20. d5 {[%emt 0:03:05]} Be5 {[%emt 0:01:57]} 21. Bxe5 {[%emt 0:04:43]} Rxe5 {[%emt 0:00:06]} 22. a4 {[%emt 0:00:26]} Qb6 {[%emt 0:12:56]} 23. axb5 {[%emt 0:01:24]} Nf4 {[%emt 0:01:35]} 24. g3 {[%emt 0:01:52]} Ng6 {[%emt 0:01:28]} 25. Bd3 {[%emt 0:01:08]} axb5 {[%emt 0:00:42]} 26. Rxa8+ {[%emt 0:02:51]} Bxa8 {[%emt 0:00:05]} 27. Nxb5 {[%emt 0:00:48]} Re8 {[%emt 0:01:33]} 28. Ra1 {[%emt 0:04:33]} Ne5 {[%emt 0:00:33]} 29. Be2 {[%emt 0:00:19]} c4 {[%emt 0:09:01]} 30. Qa5 {[%emt 0:02:12]} Qb8 {[%emt 0:05:20]} 31. Nc7 {[%emt 0:02:26]} Rc8 {[%emt 0:02:12]} 32. Nxa8 {[%emt 0:06:10]} Qxb2 {[%emt 0:00:07]} 33. Qa6 {[%emt 0:04:18]} Rb8 {[%emt 0:01:04]} 34. Qa2 {[%emt 0:02:23]} c3 {[%emt 0:00:42]} 35. Qxb2 {[%emt 0:06:49]} Rxb2 {[%emt 0:05:54]} 36. Bd1 {[%emt 0:01:08]} Nf3+ {[%emt 0:03:05]} 37. Kf1 {[%emt 0:03:22]} c2 {[%emt 0:01:33]} 38. Bxc2 {[%emt 0:00:50]} Rxc2 {[%emt 0:00:06]} 39. Ra4 {[%emt 0:00:57]} Ne5 {[%emt 0:01:06]} 40. f4 {[%emt 0:05:20]} gxf4 {[%emt 0:00:24]} 41. gxf4 {[%emt 0:00:06]} Ng6 {[%emt 0:01:26]} 42. f5 {[%emt 0:02:06]} Ne5 {[%emt 0:01:39]} 43. Ra6 {[%emt 0:01:11]} Nf3 {[%emt 0:00:19]} 44. Rxd6 {[%emt 0:02:14]} Rd2 {[%emt 0:00:22]} 45. Nc7 {[%emt 0:03:57]} Nh2+ {[%emt 0:00:06]} 46. Ke1 {[%emt 0:00:07]} Nf3+ {[%emt 0:00:04]} 47. Kf1 {[%emt 0:00:04]} Nh2+ {[%emt 0:00:05]} 48. Ke1 {[%emt 0:00:05]} Nf3+ {[%emt 0:00:04]} 1/2-1/2

[Event "Kragero Resort A 2020"]
[Site "Kragero"]
[Date "2020.02.23"]
[Round "9.15"]
[White "Sriram, Jha"]
[Black "Vitenberg, Noam Aviv"]
[Result "0-1"]
[ECO "A13"]
[WhiteElo "2383"]
[BlackElo "2276"]
[Annotator "NA"]
[PlyCount "98"]
[EventDate "2020.02.19"]
[EventType "swiss"]
[EventCountry "NOR"]
[SourceTitle "playchess.com"]
[Source "ChessBase"]
[SourceQuality "1"]
[TimeControl "5400+30"]

1. Nf3 {[%emt 0:00:00]} d5 {[%emt 0:01:23]} 2. e3 {[%emt 0:00:03]} Nf6 {[%emt 0:02:23]} 3. c4 {[%emt 0:00:21]} e6 {[%emt 0:02:30]} 4. b3 {[%emt 0:00:18]} Be7 {[%emt 0:02:34]} 5. Bb2 {[%emt 0:00:19]} O-O {[%emt 0:01:52]} 6. Nc3 {[%emt 0:00:26]} Nbd7 {[%emt 0:02:57] A13: English Opening: 1...e6.} 7. Qc2 {[%emt 0:00:59]} b6 {[%emt 0:11:54]} 8. cxd5 {[%emt 0:08:11]} exd5 {[%emt 0:00:27]} 9. Be2 {[%emt 0:06:33]} Bb7 {[%emt 0:01:16]} 10. O-O {[%emt 0:01:56]} a6 {[%emt 0:09:36]} 11. Rac1 {[%emt 0:00:37]} Rc8 {[%emt 0:02:17]} 12. d4 {[%emt 0:09:37] [#]} Bd6 $146 {[%emt 0:02:14]} ({Predecessor:} 12... Re8 13. Rfd1 Bd6 14. Bd3 Ne4 15. Qe2 Ra8 16. Nb1 Qe7 17. Nbd2 f5 18. Nf1 Qf7 {1-0 (64) Ballecer,D-Villanueva,V Bagac 2000}) 13. Qf5 {[%emt 0:02:34]} Re8 {[%emt 0:05:51]} 14. Bd3 {[%emt 0:05:11]} Qe7 {[%emt 0:16:31]} 15. Bb1 {[%emt 0:07:22]} g6 {[%emt 0:05:58]} 16. Qh3 {[%emt 0:06:33]} Rcd8 {[%emt 0:08:41]} 17. Ne2 {[%emt 0:06:16]} Ne4 {[%emt 0:02:12]} 18. g3 {[%emt 0:11:40]} Ndf6 {[%emt 0:01:19]} 19. Qg2 {[%emt 0:02:11]} c5 {[%emt 0:01:39]} 20. Nc3 {[%emt 0:03:06]} c4 {[%emt 0:01:27]} 21. Nxe4 {[%emt 0:10:19]} Nxe4 {[%emt 0:00:48]} 22. Qh3 {[%emt 0:02:01]} Ng5 {[%emt 0:11:37]} 23. Nxg5 {[%emt 0:00:52]} Qxg5 {[%emt 0:00:01]} 24. Qg2 $17 {[%emt 0:02:52]} b5 {[%emt 0:00:52]} 25. bxc4 {[%emt 0:01:07]} bxc4 {[%emt 0:00:09]} 26. Bc3 {[%emt 0:02:31]} Bc6 {[%emt 0:01:13]} 27. Bc2 {[%emt 0:00:16]} Bd7 {[%emt 0:01:01]} 28. h4 {[%emt 0:02:24]} Qh5 {[%emt 0:01:02]} 29. Bd1 {[%emt 0:02:09]} Bg4 {[%emt 0:01:24]} 30. Bxg4 {[%emt 0:00:25]} Qxg4 {[%emt 0:00:01]} 31. Qxd5 {[%emt 0:04:10]} Ba3 {[%emt 0:00:28]} 32. Qxc4 {[%emt 0:00:11]} Bxc1 {[%emt 0:00:10]} 33. Rxc1 {[%emt 0:00:02]} Qf3 {[%emt 0:01:57]} 34. Qd3 {[%emt 0:00:56]} Rd5 {[%emt 0:00:23]} 35. Be1 {[%emt 0:00:32]} g5 {[%emt 0:00:21]} 36. hxg5 {[%emt 0:02:22]} Rxg5 {[%emt 0:00:16]} 37. Qd1 {[%emt 0:00:03]} Qe4 {[%emt 0:00:43]} 38. Rc5 {[%emt 0:00:36]} Rxc5 {[%emt 0:00:48]} 39. dxc5 {[%emt 0:00:01]} Rb8 {[%emt 0:00:09]} 40. Kh2 {[%emt 0:00:32]} Rc8 {[%emt 0:00:21]} 41. Qd4 {[%emt 0:00:37]} Qf5 {[%emt 0:01:12]} 42. Kg1 {[%emt 0:01:03]} Qxc5 {[%emt 0:00:31]} 43. Qg4+ {[%emt 0:00:08]} Kh8 {[%emt 0:00:23]} 44. Bb4 {[%emt 0:00:55]} Qc4 {[%emt 0:00:14]} 45. Qf5 {[%emt 0:00:25]} Qe6 {[%emt 0:00:28]} 46. Qg5 {[%emt 0:00:43]} f6 {[%emt 0:00:23]} 47. Qh6 {[%emt 0:00:23]} Qf5 {[%emt 0:00:49]} 48. Be7 {[%emt 0:00:40]} Rc1+ {[%emt 0:00:22]} 49. Kg2 {[%emt 0:00:27]} Qe4+ {[%emt 0:00:27]} 0-1

[Event "Kragero Resort A 2020"]
[Site "Kragero"]
[Date "2020.02.23"]
[Round "9.16"]
[White "Miedema, David"]
[Black "Eliseev, Sergey"]
[Result "1-0"]
[ECO "E16"]
[WhiteElo "2368"]
[BlackElo "1947"]
[Annotator "ChessBase"]
[PlyCount "69"]
[EventDate "2020.02.19"]
[EventType "swiss"]
[EventCountry "NOR"]
[SourceTitle "playchess.com"]
[Source "ChessBase"]
[SourceQuality "1"]
[TimeControl "5400+30"]

1. d4 {[%emt 0:00:00]} Nf6 {[%emt 0:00:00]} 2. c4 {[%emt 0:00:00]} e6 {[%emt 0:00:00]} 3. Nf3 {[%emt 0:00:00]} b6 {[%emt 0:00:00]} 4. g3 {[%emt 0:00:00]} Bb7 {[%emt 0:00:00]} 5. Bg2 {[%emt 0:00:00]} Bb4+ {[%emt 0:00:54]} 6. Bd2 {[%emt 0:00:22]} Be7 {[%emt 0:00:07]} 7. Nc3 {[%emt 0:00:08]} O-O {[%emt 0:01:11]} 8. O-O {[%emt 0:00:08]} c5 {[%emt 0:00:48]} 9. d5 {[%emt 0:01:11]} exd5 {[%emt 0:02:52]} 10. Ne1 {[%emt 0:00:50]} b5 {[%emt 0:10:37]} 11. cxd5 {[%emt 0:00:52]} d6 {[%emt 0:23:31]} 12. Nxb5 {[%emt 0:00:38]} Bxd5 {[%emt 0:01:23]} 13. Bf4 {[%emt 0:01:33]} Bxg2 {[%emt 0:03:33]} 14. Nxg2 {[%emt 0:00:06]} Qb6 {[%emt 0:03:24]} 15. Qb3 {[%emt 0:00:54]} Qc6 {[%emt 0:12:41]} 16. Rfd1 {[%emt 0:00:32]} c4 {[%emt 0:04:23]} 17. Qa4 {[%emt 0:03:49]} d5 {[%emt 0:02:03]} 18. Ne3 {[%emt 0:00:22]} Bc5 {[%emt 0:05:23]} 19. Nc3 {[%emt 0:01:09]} Qxa4 {[%emt 0:15:47]} 20. Nxa4 {[%emt 0:00:11]} Bxe3 {[%emt 0:00:24]} 21. Bxe3 {[%emt 0:00:04]} Na6 {[%emt 0:02:19]} 22. Nc3 {[%emt 0:00:14]} Nb4 {[%emt 0:00:58]} 23. Rd2 {[%emt 0:00:51]} Ne4 {[%emt 0:05:15]} 24. Nxe4 {[%emt 0:00:08]} dxe4 {[%emt 0:00:03]} 25. Rc1 {[%emt 0:03:04]} Rfc8 {[%emt 0:00:51]} 26. a3 {[%emt 0:00:06]} Na2 {[%emt 0:02:20]} 27. Rcc2 {[%emt 0:00:35]} c3 {[%emt 0:01:17]} 28. Rd7 {[%emt 0:00:05]} cxb2 {[%emt 0:01:20]} 29. Rxb2 {[%emt 0:00:07]} Nc3 {[%emt 0:00:24]} 30. Rbb7 {[%emt 0:00:24]} Nxe2+ {[%emt 0:00:40]} 31. Kf1 {[%emt 0:00:07]} Nc3 {[%emt 0:00:30]} 32. Rxf7 {[%emt 0:00:08]} Nd5 {[%emt 0:00:26]} 33. Rxg7+ {[%emt 0:00:07]} Kf8 {[%emt 0:00:07]} 34. Bh6 {[%emt 0:00:15]} Rc1+ {[%emt 0:00:57]} 35. Bxc1 {[%emt 0:00:07]} 1-0

[Event "Kragero Resort A 2020"]
[Site "Kragero"]
[Date "2020.02.23"]
[Round "9.17"]
[White "Kjartansson, David"]
[Black "Thorgeirsson, Jon Kristinn"]
[Result "1-0"]
[ECO "D02"]
[WhiteElo "2356"]
[BlackElo "2269"]
[Annotator "ChessBase"]
[PlyCount "91"]
[EventDate "2020.02.19"]
[EventType "swiss"]
[EventCountry "NOR"]
[SourceTitle "playchess.com"]
[Source "ChessBase"]
[SourceQuality "1"]
[TimeControl "5400+30"]

1. d4 {[%emt 0:00:00]} d5 {[%emt 0:00:00]} 2. Nf3 {[%emt 0:00:00]} Nf6 {[%emt 0:00:00]} 3. Bf4 {[%emt 0:00:00]} e6 {[%emt 0:00:50]} 4. e3 {[%emt 0:00:17]} Bd6 {[%emt 0:00:09]} 5. Bg3 {[%emt 0:00:06]} O-O {[%emt 0:00:20]} 6. Nbd2 {[%emt 0:00:10]} c5 {[%emt 0:00:34]} 7. c3 {[%emt 0:00:08]} Nc6 {[%emt 0:00:12]} 8. Bd3 {[%emt 0:00:46]} cxd4 {[%emt 0:04:36]} 9. exd4 {[%emt 0:00:30]} Qc7 {[%emt 0:01:52]} 10. O-O {[%emt 0:01:47]} Bxg3 {[%emt 0:00:39]} 11. hxg3 {[%emt 0:00:27]} e5 {[%emt 0:00:17]} 12. dxe5 {[%emt 0:00:31]} Nxe5 {[%emt 0:00:08]} 13. Nxe5 {[%emt 0:00:29]} Qxe5 {[%emt 0:00:08]} 14. Re1 {[%emt 0:00:30]} Qd6 {[%emt 0:00:28]} 15. Nb3 {[%emt 0:04:26]} Bg4 {[%emt 0:01:59]} 16. Qd2 {[%emt 0:02:12]} Rfe8 {[%emt 0:00:41]} 17. Nd4 {[%emt 0:00:28]} h6 {[%emt 0:02:37]} 18. Rxe8+ {[%emt 0:06:08]} Rxe8 {[%emt 0:00:10]} 19. Re1 {[%emt 0:00:11]} Rxe1+ {[%emt 0:02:54]} 20. Qxe1 {[%emt 0:04:22]} Bd7 {[%emt 0:01:01]} 21. Qe3 {[%emt 0:06:18]} Ng4 {[%emt 0:00:35]} 22. Qf4 {[%emt 0:09:40]} Qe5 {[%emt 0:05:46]} 23. Qxe5 {[%emt 0:10:50]} Nxe5 {[%emt 0:01:57]} 24. Be2 {[%emt 0:00:04]} Kf8 {[%emt 0:01:41]} 25. Bf3 {[%emt 0:08:25]} Be6 {[%emt 0:02:23]} 26. Kf1 {[%emt 0:10:52]} Ke7 {[%emt 0:00:44]} 27. Ke2 {[%emt 0:00:57]} Kd6 {[%emt 0:00:27]} 28. b3 {[%emt 0:00:50]} a6 {[%emt 0:04:08]} 29. Ke3 {[%emt 0:00:35]} Nc6 {[%emt 0:03:47]} 30. a4 {[%emt 0:02:48]} Kc5 {[%emt 0:04:54]} 31. b4+ {[%emt 0:05:39]} Kc4 {[%emt 0:03:33]} 32. Nxc6 {[%emt 0:01:26]} bxc6 {[%emt 0:00:05]} 33. Kd2 {[%emt 0:00:31]} d4 {[%emt 0:03:06]} 34. cxd4 {[%emt 0:01:40]} Kxd4 {[%emt 0:02:25]} 35. Bxc6 {[%emt 0:00:16]} Kc4 {[%emt 0:03:31]} 36. b5 {[%emt 0:00:59]} Kc5 {[%emt 0:00:37]} 37. Kc3 {[%emt 0:02:27]} f6 {[%emt 0:14:16]} 38. Be8 {[%emt 0:02:04]} Bc4 {[%emt 0:01:01]} 39. bxa6 {[%emt 0:01:20]} Bxa6 {[%emt 0:00:42]} 40. Bh5 {[%emt 0:00:41]} g5 {[%emt 0:00:36]} 41. Bf3 {[%emt 0:00:47]} f5 {[%emt 0:00:25]} 42. g4 {[%emt 0:00:27]} f4 {[%emt 0:06:56]} 43. Be4 {[%emt 0:01:59]} Be2 {[%emt 0:04:20]} 44. f3 {[%emt 0:01:08]} Ba6 {[%emt 0:00:53]} 45. Bd3 {[%emt 0:00:42]} Bc8 {[%emt 0:07:25]} 46. a5 {[%emt 0:00:09]} 1-0